fUSD/lending_fUSD_20241104
["ID","MTS","AMOUNT","RATE_DAILY","PERIOD"]
[341245317,1730725859332,-500.0,0.00035616,2]
[341245318,1730725859342,-500.0,0.00035616,2]
[341245319,1730725859351,-500.0,0.00035616,2]
[341245320,1730725859360,-500.0,0.00035616,2]
[341245321,1730725859369,-500.0,0.00035616,2]
[341245322,1730725859378,-500.0,0.00035616,2]
[341245323,1730725859388,-500.0,0.00035616,2]
[341245324,1730725859397,-500.0,0.00035616,2]
[341245325,1730725859407,-500.0,0.00035616,2]
[341245326,1730725859416,-500.0,0.00035616,2]
[341245327,1730725859426,-500.0,0.00035616,2]
[341245328,1730725859435,-500.0,0.00035616,2]
[341245329,1730725859444,-500.0,0.00035616,2]
[341245330,1730725859454,-515.20207438,0.00035616,2]
[341245331,1730725859463,-500.0,0.00035616,2]
[341245332,1730725859472,-500.0,0.00035616,2]
[341245333,1730725859481,-157.18,0.00035616,2]
[341245334,1730725859490,-502.78162334,0.00035616,2]
[341245335,1730725859499,-500.0,0.00035616,2]
[341245336,1730725859509,-264.82420505,0.00035616,2]
[341245337,1730725859518,-150.0,0.00035616,2]
[341245338,1730725859527,-500.0,0.00035616,2]
[341245339,1730725859536,-500.0,0.00035616,2]
[341245340,1730725859545,-500.0,0.00035616,2]
[341245341,1730725859554,-500.0,0.00035616,2]
[341245342,1730725859564,-500.0,0.00035616,2]
[341245343,1730725859573,-500.0,0.00035616,2]
[341245344,1730725859582,-510.66346132,0.00035616,2]
[341245345,1730725859592,-504.68433001,0.00035616,2]
[341245346,1730725859601,-530.06661831,0.00035616,2]
[341245347,1730725859610,-500.0,0.00035616,2]
[341245348,1730725859620,-500.0,0.00035616,2]
[341245349,1730725859630,-500.0,0.00035616,2]
[341245350,1730725859640,-500.0,0.00035616,2]
[341245351,1730725859649,-526.46485316,0.00035616,2]
[341245352,1730725859658,-500.0,0.00035616,2]
[341245353,1730725859668,-500.0,0.00035616,2]
[341245354,1730725859678,-500.0,0.00035616,2]
[341245355,1730725859687,-500.0,0.00035616,2]
[341245356,1730725859696,-253.62936314,0.00035616,2]
[341245357,1730725859705,-500.0,0.00035616,2]
[341245358,1730725859714,-511.99241114,0.00035616,2]
[341245359,1730725859723,-505.01180651,0.00035616,2]
[341245360,1730725859733,-500.0,0.00035616,2]
[341245361,1730725859742,-500.0,0.00035616,2]
[341245362,1730725859756,-500.0,0.00035616,2]
[341245363,1730725859765,-530.15350467,0.00035616,2]
[341245364,1730725859776,-500.0,0.00035616,2]
[341245365,1730725859784,-502.91597112,0.00035616,2]
[341245366,1730725859794,-449.77246004,0.00035616,2]
[341245367,1730725859803,-1165.65,0.00035616,2]
[341245368,1730725859814,-531.58028465,0.00035616,2]
[341245369,1730725859823,-500.0,0.00035616,2]
[341245370,1730725859835,-541.76646777,0.00035616,2]
[341245371,1730725859845,-500.0,0.00035616,2]
[341245372,1730725859854,-511.11030976,0.00035616,2]
[341245373,1730725859863,-500.0,0.00035616,2]
[341245374,1730725859873,-500.0,0.00035616,2]
[341245375,1730725859882,-500.0,0.00035616,2]
[341245376,1730725859891,-509.40068614,0.00035616,2]
[341245377,1730725859903,-500.0,0.00035616,2]
[341245378,1730725859913,-500.0,0.00035616,2]
[341245379,1730725859923,-500.0,0.00035616,2]
[341245380,1730725859932,-500.0,0.00035616,2]
[341245381,1730725859942,-500.0,0.00035616,2]
[341245382,1730725859951,-516.01779805,0.00035616,2]
[341245383,1730725859959,-500.0,0.00035616,2]
[341245384,1730725859968,-500.0,0.00035616,2]
[341245385,1730725859977,-500.0,0.00035616,2]
[341245386,1730725859986,-500.0,0.00035616,2]
[341245387,1730725859996,-530.96610281,0.00035616,2]
[341245388,1730725860005,-500.0,0.00035616,2]
[341245389,1730725860015,-500.0,0.00035616,2]
[341245390,1730725860024,-500.0,0.00035616,2]
[341245391,1730725860033,-547.78972043,0.00035616,2]
[341245392,1730725860042,-500.0,0.00035616,2]
[341245393,1730725860051,-500.0,0.00035616,2]
[341245394,1730725860060,-500.0,0.00035616,2]
[341245395,1730725860075,-500.0,0.00035616,2]
[341245396,1730725860086,-500.0,0.00035616,2]
[341245397,1730725860095,-500.0,0.00035616,2]
[341245398,1730725860104,-326.68153031,0.00035616,2]
[341245399,1730725860113,-525.05467817,0.00035616,2]
[341245400,1730725860122,-512.83,0.00035616,2]
[341245401,1730725860131,-500.0,0.00035616,2]
[341245402,1730725860141,-500.0,0.00035616,2]
[341245403,1730725860150,-493.81,0.00035616,2]
[341245404,1730725860160,-559.53408934,0.00035616,2]
[341245405,1730725860169,-500.0,0.00035616,2]
[341245406,1730725860178,-500.0,0.00035616,2]
[341245407,1730725860188,-504.53225389,0.00035616,2]
[341245408,1730725860197,-500.0,0.00035616,2]
[341245409,1730725860207,-500.0,0.00035616,2]
[341245410,1730725860217,-530.61669054,0.00035616,2]
[341245411,1730725860227,-470.0396391,0.00035616,2]
[341245412,1730725860237,-500.0,0.00035616,2]
[341245413,1730725860248,-500.0,0.00035616,2]
[341245414,1730725860257,-500.0,0.00035616,2]
[341245415,1730725860267,-500.0,0.00035616,2]
[341245416,1730725860277,-219.41910414,0.00035616,2]
[341245417,1730725860286,-508.989438,0.00035616,2]
[341245418,1730725860296,-500.0,0.00035616,2]
[341245419,1730725860306,-500.0,0.00035616,2]
[341245420,1730725860321,-500.0,0.00035616,2]
[341245421,1730725860331,-500.0,0.00035616,2]
[341245422,1730725860341,-537.90451076,0.00035616,2]
[341245423,1730725860350,-542.57823372,0.00035616,2]
[341245424,1730725860359,-1331.81,0.00035616,2]
[341245425,1730725860368,-500.0,0.00035616,2]
[341245426,1730725860377,-972.11,0.00035616,2]
[341245427,1730725860387,-636.30407102,0.00035616,2]
[341245428,1730725860395,-500.0,0.00035616,2]
[341245429,1730725860405,-500.0,0.00035616,2]
[341245430,1730725860414,-500.0,0.00035616,2]
[341245431,1730725860423,-500.0,0.00035616,2]
[341245432,1730725860432,-500.0,0.00035616,2]
[341245433,1730725860441,-500.0,0.00035616,2]
[341245434,1730725860452,-500.0,0.00035616,2]
[341245435,1730725860461,-559.79970835,0.00035616,2]
[341245436,1730725860471,-506.47600073,0.00035616,2]
[341245437,1730725860480,-500.0,0.00035616,2]
[341245438,1730725860489,-500.0,0.00035616,2]
[341245439,1730725860498,-520.07498797,0.00035616,2]
[341245440,1730725860507,-515.13147661,0.00035616,2]
[341245441,1730725860516,-500.0,0.00035616,2]
[341245442,1730725860526,-519.48927211,0.00035616,2]
[341245443,1730725860535,-546.65753769,0.00035616,2]
[341245444,1730725860544,-500.0,0.00035616,2]
[341245445,1730725860554,-500.0,0.00035616,2]
[341245446,1730725860563,-500.0,0.00035616,2]
[341245447,1730725860577,-500.0,0.00035616,2]
[341245448,1730725860586,-500.0,0.00035616,2]
[341245449,1730725860595,-500.0,0.00035616,2]
[341245450,1730725860605,-517.13349971,0.00035616,2]
[341245451,1730725860614,-500.0,0.00035616,2]
[341245452,1730725860623,-452.16960071,0.00035616,2]
[341245453,1730725860632,-500.0,0.00035616,2]
[341245454,1730725860642,-428.2764671,0.00035616,2]
[341245455,1730725860652,-500.0,0.00035616,2]
[341245456,1730725860661,-523.70272049,0.00035616,2]
[341245457,1730725860670,-500.0,0.00035616,2]
[341245458,1730725860679,-500.0,0.00035616,2]
[341245459,1730725860688,-401.99568663,0.00035616,2]
[341245460,1730725860697,-503.54015799,0.00035616,2]
[341245461,1730725860706,-500.0,0.00035616,2]
[341245462,1730725860716,-500.0,0.00035616,2]
[341245463,1730725860726,-581.97087498,0.00035616,2]
[341245464,1730725860735,-500.0,0.00035616,2]
[341245465,1730725860744,-500.0,0.00035616,2]
[341245466,1730725860754,-500.0,0.00035616,2]
[341245467,1730725860767,-500.0,0.00035616,2]
[341245468,1730725860776,-643.07198979,0.00035616,2]
[341245469,1730725860786,-500.0,0.00035616,2]
[341245470,1730725860795,-500.0,0.00035616,2]
[341245471,1730725860806,-500.0,0.00035616,2]
[341245472,1730725860819,-500.0,0.00035616,2]
[341245473,1730725860828,-500.0,0.00035616,2]
[341245474,1730725860839,-500.0,0.00035616,2]
[341245475,1730725860848,-1002.08,0.00035616,2]
[341245476,1730725860858,-500.0,0.00035616,2]
[341245477,1730725860867,-500.0,0.00035616,2]
[341245478,1730725860876,-500.0,0.00035616,2]
[341245479,1730725860884,-445.49006215,0.00035616,2]
[341245480,1730725860893,-500.0,0.00035616,2]
[341245481,1730725860903,-500.0,0.00035616,2]
[341245482,1730725860912,-500.0,0.00035616,2]
[341245483,1730725860920,-500.0,0.00035616,2]
[341245484,1730725860930,-500.0,0.00035616,2]
[341245485,1730725860939,-500.0,0.00035616,2]
[341245486,1730725860949,-500.0,0.00035616,2]
[341245487,1730725860958,-539.97169079,0.00035616,2]
[341245488,1730725860967,-500.0,0.00035616,2]
[341245489,1730725860977,-500.0,0.00035616,2]
[341245490,1730725860986,-537.59832235,0.00035616,2]
[341245491,1730725860995,-500.0,0.00035616,2]
[341245492,1730725861005,-500.0,0.00035616,2]
[341245493,1730725861013,-500.0,0.00035616,2]
[341245494,1730725861022,-500.0,0.00035616,2]
[341245495,1730725861031,-512.50458986,0.00035616,2]
[341245496,1730725861040,-615.69467654,0.00035616,2]
[341245497,1730725861049,-522.2321516,0.00035616,2]
[341245498,1730725861058,-500.0,0.00035616,2]
[341245499,1730725861070,-500.0,0.00035616,2]
[341245500,1730725861079,-518.81924414,0.00035616,2]
[341245501,1730725861088,-500.0,0.00035616,2]
[341245502,1730725861097,-500.0,0.00035616,2]
[341245503,1730725861106,-593.40497309,0.00035616,2]
[341245504,1730725861116,-500.0,0.00035616,2]
[341245505,1730725861124,-500.0,0.00035616,2]
[341245506,1730725861134,-500.0,0.00035616,2]
[341245507,1730725861143,-500.0,0.00035616,2]
[341245508,1730725861153,-500.0,0.00035616,2]
[341245509,1730725861161,-339.02921139,0.00035616,2]
[341245510,1730725861170,-532.97286093,0.00035616,2]
[341245511,1730725861180,-500.0,0.00035616,2]
[341245512,1730725861189,-500.0,0.00035616,2]
[341245513,1730725861199,-500.0,0.00035616,2]
[341245514,1730725861209,-1341.72,0.00035616,2]
[341245515,1730725861218,-568.06340935,0.00035616,2]
[341245516,1730725861228,-500.0,0.00035616,2]
[341245517,1730725861238,-500.0,0.00035616,2]
[341245518,1730725861248,-534.00332891,0.00035616,2]
[341245519,1730725861258,-500.0,0.00035616,2]
[341245520,1730725861267,-525.50722217,0.00035616,2]
[341245521,1730725861276,-500.0,0.00035616,2]
[341245522,1730725861285,-454.49725481,0.00035616,2]
[341245523,1730725861295,-500.0,0.00035616,2]
[341245524,1730725861304,-515.88900444,0.00035616,2]
[341245525,1730725861314,-533.88025394,0.00035616,2]
[341245526,1730725861326,-500.0,0.00035616,2]
[341245527,1730725861335,-500.0,0.00035616,2]
[341245528,1730725861343,-543.07851203,0.00035616,2]
[341245529,1730725861352,-500.0,0.00035616,2]
[341245530,1730725861361,-500.0,0.00035616,2]
[341245531,1730725861371,-500.0,0.00035616,2]
[341245532,1730725861380,-544.23190944,0.00035616,2]
[341245533,1730725861389,-1042.98,0.00035616,2]
[341245534,1730725861398,-540.32103823,0.00035616,2]
[341245535,1730725861407,-500.0,0.00035616,2]
[341245536,1730725861416,-517.90080069,0.00035616,2]
[341245537,1730725861425,-500.0,0.00035616,2]
[341245538,1730725861434,-500.0,0.00035616,2]
[341245539,1730725861443,-500.0,0.00035616,2]
[341245540,1730725861453,-526.26318261,0.00035616,2]
[341245541,1730725861575,-500.0,0.00035616,2]
[341245542,1730725861585,-500.0,0.00035616,2]
[341245543,1730725861595,-500.0,0.00035616,2]
[341245544,1730725861604,-500.0,0.00035616,2]
[341245545,1730725861613,-500.0,0.00035616,2]
[341245546,1730725861622,-662.72,0.00035616,2]
[341245547,1730725861633,-662.72,0.00035616,2]
[341245548,1730725861642,-662.72,0.00035616,2]
[341245549,1730725861652,-662.72,0.00035616,2]
[341245550,1730725861662,-662.72,0.00035616,2]
[341245551,1730725861671,-500.0,0.00035616,2]
[341245552,1730725861680,-662.72,0.00035616,2]
[341245553,1730725861689,-502.60993647,0.00035616,2]
[341245554,1730725861699,-500.0,0.00035616,2]
[341245555,1730725861709,-500.0,0.00035616,2]
[341245556,1730725861718,-565.14164004,0.00035616,2]
[341245557,1730725861728,-500.0,0.00035616,2]
[341245558,1730725861737,-500.0,0.00035616,2]
[341245559,1730725861747,-500.79136264,0.00035616,2]
[341245560,1730725861759,-500.0,0.00035616,2]
[341245561,1730725861769,-500.0,0.00035616,2]
[341245562,1730725861778,-500.0,0.00035616,2]
[341245563,1730725861787,-644.59301361,0.00035616,2]
[341245564,1730725861796,-1342.69,0.00035616,2]
[341245565,1730725861806,-500.0,0.00035616,2]
[341245566,1730725861814,-7421.53,0.00035616,2]
[341245567,1730725861827,-508.0568724,0.00035616,2]
[341245568,1730725861835,-531.27675937,0.00035616,2]
[341245569,1730725861845,-500.0,0.00035616,2]
[341245570,1730725861855,-3370.41,0.00035616,2]
[341245571,1730725861864,-500.0,0.00035616,2]
[341245572,1730725861873,-500.0,0.00035616,2]
[341245573,1730725861882,-500.0,0.00035616,2]
[341245574,1730725861891,-500.0,0.00035616,2]
[341245575,1730725861901,-503.19553962,0.00035616,2]
[341245576,1730725861910,-500.0,0.00035616,2]
[341245577,1730725861920,-500.0,0.00035616,2]
[341245578,1730725861931,-500.0,0.00035616,2]
[341245579,1730725861942,-500.0,0.00035616,2]
[341245580,1730725861951,-500.0,0.00035616,2]
[341245581,1730725861961,-500.32494042,0.00035616,2]
[341245582,1730725861970,-624.26,0.00035616,2]
[341245583,1730725861980,-520.92643757,0.00035616,2]
[341245584,1730725861990,-500.0,0.00035616,2]
[341245585,1730725862001,-500.0,0.00035616,2]
[341245586,1730725862011,-500.0,0.00035616,2]
[341245587,1730725862020,-500.0,0.00035616,2]
[341245588,1730725862029,-505.34229711,0.00035616,2]
[341245589,1730725862038,-500.0,0.00035616,2]
[341245590,1730725862048,-209.33489694,0.00035616,2]
[341245591,1730725862058,-707.91,0.00035616,2]
[341245592,1730725862067,-500.0,0.00035616,2]
[341245593,1730725862079,-500.55099401,0.00035616,2]
[341245594,1730725862089,-500.0,0.00035616,2]
[341245595,1730725862098,-500.07630229,0.00035616,2]
[341245596,1730725862107,-10707.45,0.00035616,2]
[341245597,1730725862116,-505.59889004,0.00035616,2]
[341245598,1730725862125,-150.0,0.00035616,2]
[341245599,1730725862134,-505.73183937,0.00035616,2]
[341245600,1730725862143,-500.0,0.00035616,2]
[341245601,1730725862152,-500.0,0.00035616,2]
[341245602,1730725862163,-507.93877036,0.00035616,2]
[341245603,1730725862172,-500.0,0.00035616,2]
[341245604,1730725862181,-500.0,0.00035616,2]
[341245605,1730725862190,-500.0,0.00035616,2]
[341245606,1730725862199,-500.0,0.00035616,2]
[341245607,1730725862209,-506.91191827,0.00035616,2]
[341245608,1730725862218,-500.0,0.00035616,2]
[341245609,1730725862228,-500.0,0.00035616,2]
[341245610,1730725862237,-513.2297925,0.00035616,2]
[341245611,1730725862246,-500.0,0.00035616,2]
[341245612,1730725862256,-554.30690051,0.00035616,2]
[341245613,1730725862265,-500.0,0.00035616,2]
[341245614,1730725862274,-522.43564164,0.00035616,2]
[341245615,1730725862283,-500.0,0.00035616,2]
[341245616,1730725862292,-500.0,0.00035616,2]
[341245617,1730725862301,-500.0,0.00035616,2]
[341245618,1730725862310,-500.0,0.00035616,2]
[341245619,1730725862320,-500.0,0.00035616,2]
[341245620,1730725862330,-500.0,0.00035616,2]
[341245621,1730725862339,-831.55,0.00035616,2]
[341245622,1730725862349,-500.0,0.00035616,2]
[341245623,1730725862358,-500.0,0.00035616,2]
[341245624,1730725862367,-500.0,0.00035616,2]
[341245625,1730725862376,-500.0,0.00035616,2]
[341245626,1730725862385,-500.0,0.00035616,2]
[341245627,1730725862394,-500.0,0.00035616,2]
[341245628,1730725862403,-500.0,0.00035616,2]
[341245629,1730725862412,-500.0,0.00035616,2]
[341245630,1730725862422,-506.99175545,0.00035616,2]
[341245631,1730725862431,-500.0,0.00035616,2]
[341245632,1730725862443,-1217.0,0.00035616,2]
[341245633,1730725862454,-2695.19,0.00035616,2]
[341245634,1730725862463,-537.44215438,0.00035616,2]
[341245635,1730725862472,-500.0,0.00035616,2]
[341245636,1730725862482,-505.58158668,0.00035616,2]
[341245637,1730725862491,-500.0,0.00035616,2]
[341245638,1730725862501,-500.0,0.00035616,2]
[341245639,1730725862510,-529.34452611,0.00035616,2]
[341245640,1730725862520,-500.0,0.00035616,2]
[341245641,1730725862529,-373.75987028,0.00035616,2]
[341245642,1730725862538,-500.0,0.00035616,2]
[341245643,1730725862548,-500.0,0.00035616,2]
[341245644,1730725862557,-500.0,0.00035616,2]
[341245645,1730725862567,-575.84,0.00035616,2]
[341245646,1730725862577,-500.0,0.00035616,2]
[341245647,1730725862586,-3535.86,0.00035616,2]
[341245648,1730725862596,-646.31,0.00035616,2]
[341245649,1730725862606,-233.37017038,0.00035616,2]
[341245650,1730725862615,-500.0,0.00035616,2]
[341245651,1730725862625,-539.37160018,0.00035616,2]
[341245652,1730725862635,-540.81,0.00035616,2]
[341245653,1730725862645,-500.0,0.00035616,2]
[341245654,1730725862654,-500.0,0.00035616,2]
[341245655,1730725862664,-500.0,0.00035616,2]
[341245656,1730725862674,-500.0,0.00035616,2]
[341245657,1730725862683,-500.0,0.00035616,2]
[341245658,1730725862692,-830.33,0.00035616,2]
[341245659,1730725862701,-500.0,0.00035616,2]
[341245660,1730725862711,-500.0,0.00035616,2]
[341245661,1730725862720,-500.0,0.00035616,2]
[341245662,1730725862730,-500.0,0.00035616,2]
[341245663,1730725862739,-559.73145192,0.00035616,2]
[341245664,1730725862748,-500.0,0.00035616,2]
[341245665,1730725862760,-500.0,0.00035616,2]
[341245666,1730725862770,-845.84,0.00035616,2]
[341245667,1730725862779,-2000.0,0.00035616,2]
[341245668,1730725862788,-500.0,0.00035616,2]
[341245669,1730725862798,-426.09295139,0.00035616,2]
[341245670,1730725862808,-500.0,0.00035616,2]
[341245671,1730725862817,-2000.0,0.00035616,120]
[341245672,1730725862828,-2072.13398806,0.00035616,120]
[341245673,1730725862839,-500.0,0.00035616,2]
[341245674,1730725862849,-1000.0,0.00035616,2]
[341245675,1730725862859,-545.81013493,0.00035616,2]
[341245676,1730725862868,-196.20190819,0.00035616,2]
[341245677,1730725862877,-4515.86,0.00035616,120]
[341245678,1730725862887,-918.13,0.00035616,2]
[341245679,1730725862895,-159.87158899,0.00035616,2]
[341245680,1730725862905,-500.0,0.00035616,2]
[341245681,1730725862915,-1204.33,0.00035616,2]
[341245682,1730725862925,-500.0,0.00035616,2]
[341245683,1730725862935,-500.0,0.00035616,2]
[341245684,1730725862944,-749.48,0.00035616,2]
[341245685,1730725862953,-500.0,0.00035616,2]
[341245686,1730725862962,-500.0,0.00035616,2]
[341245687,1730725862971,-500.0,0.00035616,2]
[341245688,1730725862979,-500.0,0.00035616,2]
[341245689,1730725862989,-500.0,0.00035616,2]
[341245690,1730725862998,-500.0,0.00035616,2]
[341245691,1730725863007,-500.0,0.00035616,2]
[341245692,1730725863016,-1387.35,0.00035616,2]
[341245693,1730725863025,-508.88614504,0.00035616,2]
[341245694,1730725863035,-501.94601136,0.00035616,2]
[341245695,1730725863044,-522.28,0.00035616,2]
[341245696,1730725863053,-1564.21,0.00035616,2]
[341245697,1730725863064,-520.33997579,0.00035616,2]
[341245698,1730725863075,-527.65749205,0.00035616,2]
[341245699,1730725863085,-500.0,0.00035616,2]
[341245700,1730725863094,-500.0,0.00035616,2]
[341245701,1730725863104,-500.0,0.00035616,2]
[341245702,1730725863114,-806.53,0.00035616,2]
[341245703,1730725863123,-626.39625649,0.00035616,2]
[341245704,1730725863133,-163.04890535,0.00035616,2]
[341245705,1730725863143,-500.0,0.00035616,2]
[341245706,1730725863153,-500.0,0.00035616,2]
[341245707,1730725863163,-376.34559171,0.00035616,2]
[341245708,1730725863172,-500.0,0.00035616,2]
[341245709,1730725863182,-500.0,0.00035616,2]
[341245710,1730725863192,-574.44266474,0.00035616,2]
[341245711,1730725863202,-500.0,0.00035616,2]
[341245712,1730725863212,-500.0,0.00035616,2]
[341245713,1730725863222,-500.0,0.00035616,2]
[341245714,1730725863232,-600.96759292,0.00035616,2]
[341245715,1730725863241,-500.0,0.00035616,2]
[341245716,1730725863251,-5168.13,0.00035616,2]
[341245717,1730725863260,-10163.36,0.00035616,2]
[341245718,1730725863271,-2866.16,0.00035616,2]
[341245719,1730725863281,-525.28898064,0.00035616,2]
[341245720,1730725863291,-209.92712719,0.00035616,2]
[341245721,1730725863301,-691.73,0.00035616,2]
[341245722,1730725863310,-500.0,0.00035616,2]
[341245723,1730725863321,-512.10528008,0.00035616,2]
[341245724,1730725863331,-500.0,0.00035616,2]
[341245725,1730725863340,-1019.92,0.00035616,2]
[341245726,1730725863349,-500.0,0.00035616,2]
[341245727,1730725863358,-553.80335104,0.00035616,2]
[341245728,1730725863367,-500.0,0.00035616,2]
[341245729,1730725863377,-5461.87,0.00035616,2]
[341245730,1730725863386,-500.0,0.00035616,2]
[341245731,1730725863396,-592.54935569,0.00035616,2]
[341245732,1730725863406,-500.0,0.00035616,2]
[341245733,1730725863416,-500.0,0.00035616,2]
[341245734,1730725863426,-500.0,0.00035616,2]
[341245735,1730725863436,-520.61943685,0.00035616,2]
[341245736,1730725863445,-242.12659999,0.00035616,2]
[341245737,1730725863455,-500.0,0.00035616,2]
[341245738,1730725863466,-500.0,0.00035616,2]
[341245739,1730725863476,-171.11644346,0.00035616,2]
[341245740,1730725863486,-500.0,0.00035616,2]
[341245741,1730725863496,-500.0,0.00035616,2]
[341245742,1730725863506,-500.0,0.00035616,2]
[341245743,1730725863516,-10956.67,0.00035616,2]
[341245744,1730725863526,-1965.9,0.00035616,2]
[341245745,1730725863535,-571.98637387,0.00035616,2]
[341245746,1730725863544,-500.0,0.00035616,2]
[341245747,1730725863554,-223.13052678,0.00035616,2]
[341245748,1730725863564,-501.07884691,0.00035616,2]
[341245749,1730725863576,-500.0,0.00035616,2]
[341245750,1730725863585,-500.0,0.00035616,2]
[341245751,1730725863595,-500.0,0.00035616,2]
[341245752,1730725863605,-500.0,0.00035616,2]
[341245753,1730725863615,-542.11072516,0.00035616,2]
[341245754,1730725863624,-500.0,0.00035616,2]
[341245755,1730725863752,-1761.84,0.00035616,2]
[341245756,1730725863763,-1595.14,0.00035616,2]
[341245757,1730725863773,-504.65804828,0.00035616,2]
[341245758,1730725863783,-500.0,0.00035616,2]
[341245759,1730725863792,-500.0,0.00035616,2]
[341245760,1730725863803,-500.0,0.00035616,2]
[341245761,1730725863813,-330.78826893,0.00035616,2]
[341245762,1730725863824,-568.68,0.00035616,2]
[341245763,1730725863835,-598.56390352,0.00035616,2]
[341245764,1730725863845,-500.0,0.00035616,2]
[341245765,1730725863855,-500.0,0.00035616,2]
[341245766,1730725863864,-500.0,0.00035616,2]
[341245767,1730725863873,-500.0,0.00035616,2]
[341245768,1730725863882,-500.0,0.00035616,2]
[341245769,1730725863892,-500.0,0.00035616,2]
[341245770,1730725863901,-533.13567959,0.00035616,2]
[341245771,1730725863911,-546.56782375,0.00035616,2]
[341245772,1730725863921,-10530.0,0.00035616,2]
[341245773,1730725863930,-500.0,0.00035616,2]
[341245774,1730725863940,-159.93675182,0.00035616,2]
[341245775,1730725863949,-1163.57,0.00035616,2]
[341245776,1730725863960,-500.0,0.00035616,2]
[341245777,1730725863969,-1038.33,0.00035616,2]
[341245778,1730725863978,-1268.02,0.00035616,2]
[341245779,1730725863988,-500.0,0.00035616,2]
[341245780,1730725863998,-529.02,0.00035616,2]
[341245781,1730725864007,-500.0,0.00035616,2]
[341245782,1730725864017,-500.0,0.00035616,2]
[341245783,1730725864027,-500.0,0.00035616,2]
[341245784,1730725864037,-500.0,0.00035616,2]
[341245785,1730725864047,-500.0,0.00035616,2]
[341245786,1730725864057,-500.0,0.00035616,2]
[341245787,1730725864066,-2034.7,0.00035616,2]
[341245788,1730725864077,-755.3,0.00035616,2]
[341245789,1730725864087,-500.0,0.00035616,2]
[341245790,1730725864097,-513.52934879,0.00035616,2]
[341245791,1730725864106,-500.0,0.00035616,2]
[341245792,1730725864116,-1475.39,0.00035616,2]
[341245793,1730725864125,-500.0,0.00035616,2]
[341245794,1730725864135,-500.0,0.00035616,2]
[341245795,1730725864144,-500.0,0.00035616,2]
[341245796,1730725864154,-500.0,0.00035616,2]
[341245797,1730725864163,-500.0,0.00035616,2]
[341245798,1730725864173,-500.0,0.00035616,2]
[341245799,1730725864182,-500.0,0.00035616,2]
[341245800,1730725864191,-500.0,0.00035616,2]
[341245801,1730725864200,-4571.88,0.00035616,2]
[341245802,1730725864210,-901.25,0.00035616,2]
[341245803,1730725864220,-500.0,0.00035616,2]
[341245804,1730725864229,-566.72820109,0.00035616,2]
[341245805,1730725864239,-500.0,0.00035616,2]
[341245806,1730725864249,-500.0,0.00035616,2]
[341245807,1730725864258,-5855.7,0.00035616,2]
[341245808,1730725864268,-500.0,0.00035616,2]
[341245809,1730725864277,-500.0,0.00035616,2]
[341245810,1730725864287,-502.93508176,0.00035616,2]
[341245811,1730725864296,-500.0,0.00035616,2]
[341245812,1730725864306,-500.0,0.00035616,2]
[341245813,1730725864315,-500.0,0.00035616,2]
[341245814,1730725864326,-1827.95,0.00035616,2]
[341245815,1730725864336,-500.0,0.00035616,2]
[341245816,1730725864346,-509.81998122,0.00035616,2]